bitfinex-derivatives/quotes_SOLF0:USTF0_20250312
["timestamp","ask_amount","ask_price","bid_price","bid_amount"]
[1741804892352,8.06239394,124.89,124.86,0.05978461]
[1741804892740,8.0096,124.88,124.86,0.05978461]
[1741804893650,8.0097,124.87,124.81,34.6576]
[1741804893851,20.77380352,124.88,124.81,34.6576]
[1741804894050,8.0118,124.84,124.8,240.12]
[1741804894253,32.48,124.86,124.81,8.013]
[1741804894453,32.48,124.86,124.8,240.12]
[1741804894654,32.48,124.86,124.82,0.0537289]
[1741804894851,0.06138949,124.85,124.82,0.0537289]
[1741804895053,0.06138949,124.85,124.83,8.012]
[1741804895349,0.06138949,124.85,124.82,0.0537289]
[1741804895556,0.06138949,124.85,124.84,8.0116]
[1741804897052,0.06138949,124.85,124.84,61.26540352]
[1741804897255,32.48,124.9,124.86,8.01]
[1741804898047,32.48,124.9,124.85,8.0107]
[1741804898247,0.05142539,124.89,124.86,0.05124596]
[1741804899052,8.05992539,124.89,124.86,0.05124596]
[1741804899250,8.05992539,124.89,124.86,8.06134596]
[1741804899655,8.0094,124.88,124.86,0.05124596]
[1741804900055,0.05142539,124.89,124.86,0.05124596]
[1741804900456,8.06022539,124.89,124.86,8.06124596]
[1741804900956,0.05142539,124.89,124.87,8.0094]
[1741804901151,0.05142539,124.89,124.86,0.05124596]
[1741804902755,0.05142539,124.89,124.88,8.0091]
[1741804902954,0.05142539,124.89,124.86,20.82504948]
[1741804903153,0.05142539,124.89,124.88,8.0091]
[1741804904660,0.05142539,124.89,124.87,8.0091]
[1741804904961,0.05142539,124.89,124.86,20.82504948]
[1741804905359,0.05142539,124.89,124.88,8.0091]
[1741804906062,0.05142539,124.89,124.87,8.0094]
[1741804906455,0.05142539,124.89,124.86,0.05124596]
[1741804906662,0.05142539,124.89,124.88,8.0091]
[1741804910872,2.539e-05,124.89,124.88,28.78290352]
[1741804911962,2.1791,124.96,124.93,8.0053]
[1741804912164,32.48,124.99,124.9,53.25380352]
[1741804912560,32.48,124.99,124.94,8.0047]
[1741804912761,32.48,124.99,124.9,53.25380352]
[1741804913067,8.0043,124.96,124.94,8.0052]
[1741804913270,0.05697002,124.96,124.94,8.0052]
[1741804914270,0.05697002,124.96,124.95,8.0046]
[1741804915663,6.24,125.01,124.94,20.77380352]
[1741804915871,4.1187,125.01,124.97,8.0028]
[1741804916069,4.1187,125.01,124.94,20.77380352]
[1741804916272,32.46,125.03,124.98,8.0024]
[1741804916573,72.98850382,125.04,124.98,8.0024]
[1741804916769,8.001,125.01,124.98,8.0024]
[1741804916971,8.001,125.01,125.0,0.05750414]
[1741804917466,0.05851829,125.02,125.0,0.05750414]
[1741804918272,8.0007,125.01,125.0,0.05750414]
[1741804918465,0.05851829,125.02,125.0,0.05750414]
[1741804918873,8.0007,125.01,125.0,0.05750414]
[1741804919176,32.46,125.01,124.95,2.0945]
[1741804919365,8.0029,124.98,124.95,10.0988]
[1741804919769,32.46,125.01,124.95,2.0945]
[1741804920078,8.0024,124.99,124.96,8.0037]
[1741804920277,0.05967038,124.99,124.97,0.05697896]
[1741804920479,8.003,124.98,124.97,0.05697896]
[1741804921572,53.21380352,124.98,124.9,55.39600352]
[1741804921769,53.21380352,124.98,124.92,8.0064]
[1741804922275,8.005,124.95,124.92,8.0064]
[1741804922672,8.0053,124.94,124.92,0.05086697]
[1741804922878,0.05757213,124.95,124.92,0.05086697]
[1741804923178,8.0057,124.94,124.92,0.05086697]
[1741804923675,0.05757213,124.95,124.92,0.05086697]
[1741804923676,8.0059,124.93,124.92,0.05086697]
[1741804927084,8.0056,124.94,124.92,0.05086697]
[1741804927383,2.22967213,124.95,124.92,0.05086697]
[1741804928380,8.0059,124.93,124.92,0.05086697]
[1741804928880,8.0056,124.94,124.92,0.05086697]
[1741804929277,0.05757213,124.95,124.92,0.05086697]
[1741804930186,8.0056,124.94,124.92,0.05086697]
[1741804930681,8.06247213,124.95,124.92,0.05086697]
[1741804930881,0.05757213,124.95,124.92,0.05086697]
[1741804931379,0.05757213,124.95,124.93,8.0056]
[1741804931585,0.05757213,124.95,124.92,0.05086697]
[1741804931785,0.05757213,124.95,124.93,8.0055]
[1741804932080,0.05757213,124.95,124.92,0.05086697]
[1741804932287,0.05757213,124.95,124.94,8.0052]
[1741804932683,7.213e-05,124.95,124.94,8.0052]
[1741804932887,8.0016,125.0,124.98,8.0026]
[1741804933186,2.0657,125.02,124.96,53.21380352]
[1741804933387,8.0011,125.01,124.98,8.0023]
[1741804933592,1.997,125.04,124.97,32.44]
[1741804933987,0.05647965,125.02,124.99,0.05688636]
[1741804934188,8.05687965,125.02,124.99,8.05858636]
[1741804934582,0.05647965,125.02,124.99,0.05688636]
[1741804934786,17.7384003,125.08,125.05,7.9981]
[1741804935099,121.09207406,125.11,125.05,20.77380352]
[1741804935100,123.11847406,125.11,125.05,20.77380352]
[1741804935789,123.11847406,125.11,125.07,20.77380352]
[1741804936091,0.05838919,125.09,125.07,20.83363815]
[1741804936292,0.05838919,125.09,125.07,0.05983463]
[1741804944689,4.1505,125.13,125.07,0.05983463]
[1741804945096,7.9948,125.11,125.07,0.05983463]
[1741804945293,193.0,125.22,125.07,0.05983463]
[1741804945490,1.46926512,125.18,125.13,33.13979599]
[1741804945686,7.9909,125.17,125.14,32.4]
[1741804945892,8.04952072,125.17,125.14,32.46091826]
[1741804946995,0.05862072,125.17,125.14,32.46091826]
[1741804947586,8.04952072,125.17,125.14,32.46091826]
[1741804949787,7.9918,125.16,125.14,32.46091826]
[1741804950697,8.04972072,125.17,125.14,32.46091826]
[1741804950894,0.05862072,125.17,125.14,32.46091826]
[1741804952500,8.04922072,125.17,125.14,32.46091826]
[1741804954106,0.05862072,125.17,125.14,32.46091826]
[1741804954295,0.05862072,125.17,125.14,40.45321826]
[1741804954503,0.05862072,125.17,125.14,32.46091826]
[1741804954801,0.05862072,125.17,125.14,0.06091826]
[1741804955395,7.9934,125.13,125.1,32.38]
[1741804955599,2.1029,125.16,125.07,241.9538]
[1741804955902,7.9945,125.11,125.08,32.36]
[1741804956097,67.62679599,125.15,125.08,32.36]
[1741804956297,20.71302356,125.14,125.08,32.36]
[1741804956500,7.9951,125.1,125.08,32.36]
[1741804956905,8.05270087,125.1,125.08,32.41797609]
[1741804957309,7.9956,125.09,125.08,0.05797609]
[1741804957708,0.05760087,125.1,125.08,0.05797609]
[1741804958009,8.05290087,125.1,125.08,0.05797609]
[1741804958610,0.05760087,125.1,125.08,0.05797609]
[1741804960708,0.05760087,125.1,125.08,8.05367609]
[1741804960908,2.1203,125.14,125.08,65.55863867]
[1741804961115,2.1203,125.14,125.08,32.41797609]
[1741804961713,7.9941,125.12,125.09,7.9953]
[1741804962114,0.05252878,125.12,125.09,7.9952]
[1741804962713,0.05252878,125.12,125.08,0.05797609]
[1741804962714,0.05252878,125.12,125.1,7.9949]
[1741804963215,0.05252878,125.12,125.11,7.9944]
[1741804968419,2.1194,125.18,125.11,32.36]
[1741804968815,2.1194,125.18,125.12,33.14066258]
[1741804969018,32.36,125.2,125.12,33.14066258]
[1741804969218,4.0737,125.21,125.12,33.14066258]
[1741804969219,4.0737,125.21,125.13,2.1235]
[1741804969521,0.05073788,125.18,125.16,0.05113317]
[1741804969918,7.9906,125.17,125.16,0.05113317]
[1741804970717,0.05073788,125.18,125.11,32.36]
[1741804970913,7.9926,125.14,125.08,33.14066258]
[1741804971119,65.50066258,125.17,125.1,7.9944]
[1741804971316,7.9944,125.11,125.08,32.36]
[1741804971513,32.36,125.14,125.08,32.36]
[1741804971718,32.36,125.14,125.08,40.356]
[1741804971918,0.06167507,125.12,125.1,0.05793817]
[1741804972717,0.06167507,125.12,125.1,8.05293817]
[1741804973821,8.05547507,125.12,125.1,8.05293817]
[1741804974324,0.06167507,125.12,125.1,8.05293817]
[1741804974625,0.06167507,125.12,125.11,7.9944]
[1741804974825,0.06167507,125.12,125.1,0.05793817]
[1741804975430,0.06167507,125.12,125.1,8.05243817]
[1741804975627,8.05577507,125.12,125.1,0.05793817]
[1741804976326,0.06167507,125.12,125.1,0.05793817]
[1741804976626,7.9944,125.11,125.1,0.05793817]
[1741804978426,20.77555389,125.12,125.05,239.84]
[1741804978731,34.3879,125.11,125.07,7.9968]
[1741804978933,34.3879,125.11,125.05,239.84]
[1741804979330,34.3879,125.11,125.06,7.9973]
[1741804979528,8.05056183,125.09,125.07,0.05765228]
[1741804980033,0.05476183,125.09,125.07,0.05765228]
[1741804980529,0.05476183,125.09,125.07,8.05415228]
[1741804980728,0.05476183,125.09,125.07,0.05765228]
[1741804980932,0.05476183,125.09,125.07,53.1115311]
[1741804981231,34.471,125.14,125.07,53.1115311]
[1741804981433,2.131,125.14,125.07,53.1115311]
[1741804981637,2.131,125.14,125.1,7.9949]
[1741804981937,2.131,125.14,125.07,53.05387882]
[1741804982335,0.05388432,125.12,125.11,7.994]
[1741804984136,0.05388432,125.12,125.1,32.34]
[1741804984338,8.04758432,125.12,125.1,32.34]
[1741804984836,0.05388432,125.12,125.1,32.34]
[1741804985228,0.05388432,125.12,125.11,7.9944]
[1741804991042,2.0479,125.16,125.1,65.46651648]
[1741804991231,2.0675,125.18,125.12,33.12651648]
[1741804991432,7.991,125.17,125.12,33.12651648]
[1741804991637,2.0675,125.18,125.14,7.992]
[1741804991838,2.0675,125.18,125.1,65.46651648]
[1741804992039,7.9915,125.16,125.1,65.46651648]
[1741804992238,0.05335354,125.15,125.14,7.9923]
[1741804994541,0.05335354,125.15,125.13,8.04739798]
[1741804994745,0.05335354,125.15,125.13,0.05479798]
[1741804995242,7.9924,125.14,125.13,0.05479798]
[1741804995844,32.37335354,125.15,125.05,294.67639139]
[1741804996047,2.1032,125.13,125.06,32.32]
[1741804996339,2.1032,125.13,125.08,7.9958]
[1741804996939,8.04490611,125.12,125.09,8.04722545]
[1741804997139,8.04490611,125.12,125.09,0.05182545]
[1741804997342,0.05080611,125.12,125.09,0.05182545]
[1741804997646,7.9947,125.11,125.09,0.05182545]
[1741804998149,32.37080611,125.12,125.09,0.05182545]
[1741804998337,34.47410611,125.12,125.09,0.05182545]
[1741804999240,7.9944,125.11,125.09,0.05182545]
[1741804999439,34.47410611,125.12,125.09,0.05182545]
[1741805000447,7.995,125.1,125.09,0.05182545]
[1741805001744,34.47410611,125.12,125.05,247.8382]
[1741805001948,7.9962,125.09,125.05,247.8382]
[1741805002148,7.9962,125.09,125.05,239.84]
[1741805002343,7.9962,125.09,125.06,7.9975]
[1741805002541,55.14174628,125.12,125.03,20.71844628]
[1741805002746,20.71844628,125.08,125.02,7.9998]
[1741805002945,34.4721,125.07,125.06,0.05319752]
[1741805003145,34.4721,125.07,125.02,7.9998]
[1741805003537,34.4721,125.07,125.01,8.0004]
[1741805003850,7.9985,125.05,124.99,298.99424628]
[1741805004146,34.4721,125.07,125.05,7.9982]
[1741805004447,40.3173,125.07,125.01,20.71844628]
[1741805004643,32.37727753,125.07,125.05,0.05312872]
[1741805005552,0.05727753,125.07,125.05,0.05312872]
[1741805005849,0.05727753,125.07,125.06,7.9976]
[1741805006446,0.05727753,125.07,125.05,0.05312872]
[1741805007449,0.05727753,125.07,125.06,7.9976]
[1741805009949,0.05727753,125.07,125.05,0.05312872]
[1741805010143,0.05727753,125.07,125.05,8.05072872]
[1741805010344,0.05727753,125.07,125.05,0.05312872]
[1741805010753,0.05727753,125.07,125.06,7.9976]
[1741805011153,0.05727753,125.07,125.05,0.05312872]
[1741805011353,0.05727753,125.07,125.06,7.9976]
[1741805012762,0.05727753,125.07,125.05,0.05312872]
[1741805013461,7.9976,125.06,125.05,0.05312872]
[1741805014163,7.9996,125.03,124.99,2.0259]
[1741805014355,7.9996,125.03,124.97,20.71844628]
[1741805014560,7.9996,125.03,125.0,8.0011]
[1741805014957,40.3192,125.04,125.01,8.0005]
[1741805015256,0.0612676,125.01,124.99,0.05391669]
[1741805015457,32.32,125.04,124.99,20.77236297]
[1741805015650,0.05284723,125.01,124.99,20.77236297]
[1741805016261,0.05284723,125.01,125.0,8.0014]
[1741805016557,0.05284723,125.01,124.99,0.05391669]
[1741805017159,8.0014,125.0,124.99,0.05391669]
[1741805017360,0.05284723,125.01,124.99,0.05391669]
[1741805019557,0.05284723,125.01,124.99,8.05561669]
[1741805020162,8.05364723,125.01,124.99,0.05391669]
[1741805020766,0.05284723,125.01,124.99,0.05391669]
[1741805020966,8.05394723,125.01,124.99,0.05391669]
[1741805022068,0.05284723,125.01,124.99,0.05391669]
[1741805022561,8.0014,125.0,124.99,0.05391669]
[1741805024465,8.05384723,125.01,124.99,8.05591669]
[1741805024668,0.05284723,125.01,124.99,8.05591669]
[1741805025270,0.05284723,125.01,124.99,0.05391669]
[1741805025471,8.05394723,125.01,124.99,0.05391669]
[1741805025668,0.05284723,125.01,124.99,0.05391669]
[1741805026570,0.05284723,125.01,125.0,8.0014]
[1741805026871,0.05284723,125.01,124.99,0.05391669]
[1741805027065,0.05284723,125.01,125.0,8.0014]
[1741805031671,0.05284723,125.01,124.99,0.05391669]
[1741805032574,8.05394723,125.01,124.99,0.05391669]
[1741805033072,0.05284723,125.01,124.99,0.05391669]
[1741805033975,0.05284723,125.01,125.0,8.0014]
[1741805034674,0.05284723,125.01,124.99,0.05391669]
[1741805035473,0.05284723,125.01,125.0,8.0014]
[1741805035678,0.05284723,125.01,124.99,0.05391669]
[1741805035978,0.05284723,125.01,125.0,8.0014]
[1741805039573,0.05284723,125.01,124.99,8.05551669]
[1741805039977,0.05284723,125.01,124.99,0.05391669]
[1741805041081,0.05284723,125.01,125.0,8.0014]
[1741805042978,0.05284723,125.01,124.99,0.05391669]
[1741805043175,8.05384723,125.01,124.99,0.05391669]
[1741805043379,0.05284723,125.01,124.99,0.05391669]
[1741805043578,0.05284723,125.01,125.0,8.0014]
[1741805044689,0.05284723,125.01,124.99,8.05591669]
[1741805044879,8.05404723,125.01,124.99,0.05391669]
[1741805045585,0.05284723,125.01,124.99,0.05391669]
[1741805045890,0.05284723,125.01,124.99,8.05571669]
[1741805046085,8.05364723,125.01,124.99,0.05391669]
[1741805046492,0.05284723,125.01,124.99,0.05391669]
[1741805046787,8.0014,125.0,124.99,0.05391669]
[1741805047987,0.05284723,125.01,124.99,0.05391669]
[1741805048387,0.05284723,125.01,125.0,8.0014]
[1741805050789,4.723e-05,125.01,125.0,8.0014]
[1741805052898,34.3336,125.08,125.05,7.9981]
[1741805053194,7.9973,125.07,125.02,20.71844628]
[1741805053587,34.3336,125.08,125.03,7.9989]
[1741805053788,7.998,125.06,125.0,20.71844628]
[1741805053985,0.06156483,125.07,125.04,0.0511952]
[1741805054183,34.3336,125.08,125.01,8.0004]
[1741805054394,13.2715746,125.03,124.99,45.5715746]
[1741805054598,13.2715746,125.03,124.99,13.2715746]
[1741805054793,8.05904673,125.02,125.0,0.06009035]
[1741805055600,0.05864673,125.02,125.0,8.06099035]
[1741805055804,0.05864673,125.02,125.0,0.06009035]
[1741805056190,0.05864673,125.02,125.01,8.0007]
[1741805056394,0.05864673,125.02,125.01,21.2722746]
[1741805060394,0.05864673,125.02,125.01,8.0007]
[1741805063298,0.05864673,125.02,125.0,8.06139035]
[1741805063493,0.05864673,125.02,125.0,0.06009035]
[1741805063891,0.05864673,125.02,125.0,8.06119035]
[1741805065403,0.05864673,125.02,125.0,0.06009035]
[1741805065604,0.05864673,125.02,125.01,8.0007]
[1741805069410,0.05864673,125.02,125.0,0.06009035]
[1741805071813,8.05884673,125.02,125.0,8.06109035]
[1741805072312,0.05864673,125.02,125.0,8.06109035]
[1741805074512,0.05864673,125.02,125.0,0.06009035]
[1741805075012,8.0007,125.01,125.0,0.06009035]
[1741805075414,0.05864673,125.02,125.0,0.06009035]
[1741805075613,8.05924673,125.02,125.0,0.06009035]
[1741805076215,8.05924673,125.02,125.0,8.06149035]
[1741805077018,8.0007,125.01,125.0,0.06009035]
[1741805077210,0.05864673,125.02,125.0,0.06009035]
[1741805077716,8.05914673,125.02,125.0,0.06009035]
[1741805078106,8.05914673,125.02,125.0,8.06139035]
[1741805079518,0.05864673,125.02,125.01,8.0007]
[1741805079814,0.05864673,125.02,125.0,0.06009035]
[1741805080612,0.05864673,125.02,125.01,8.0007]
[1741805080813,0.05864673,125.02,125.0,0.06009035]
[1741805081317,0.05864673,125.02,125.0,8.06119035]
[1741805082519,8.05894673,125.02,125.0,8.06119035]
[1741805083121,8.05894673,125.02,125.0,0.06009035]
[1741805083623,0.05864673,125.02,125.0,0.06009035]
[1741805083824,0.05864673,125.02,125.0,8.06129035]
[1741805084116,0.05864673,125.02,125.0,0.06009035]
[1741805085721,0.05864673,125.02,125.0,8.06099035]
[1741805086020,21.33156691,125.02,124.93,46.53735937]
[1741805086223,13.27292018,124.99,124.93,54.54285937]
[1741805086520,45.53292018,124.99,124.93,46.53735937]
[1741805086725,45.53292018,124.99,124.95,8.0045]
[1741805087115,8.0033,124.97,124.96,0.05207941]
[1741805088218,8.05483061,124.98,124.96,0.05207941]
[1741805088723,0.05183061,124.98,124.96,0.05207941]
[1741805090423,13.27292018,124.97,124.96,0.05207941]
[1741805090833,21.27622018,124.97,124.96,0.05207941]
[1741805091723,13.27292018,124.97,124.96,0.05207941]
[1741805092421,21.27622018,124.97,124.96,0.05207941]
[1741805092924,13.27292018,124.97,124.96,0.05207941]
[1741805093129,8.05483061,124.98,124.96,0.05207941]
[1741805093627,8.05483061,124.98,124.96,8.05597941]
[1741805093822,0.05183061,124.98,124.96,8.05597941]
[1741805094324,0.05183061,124.98,124.97,8.0033]
[1741805101128,0.05183061,124.98,124.96,8.05567941]
[1741805101334,8.05483061,124.98,124.96,8.05567941]
[1741805101528,0.05183061,124.98,124.96,0.05207941]
[1741805101727,0.05183061,124.98,124.97,8.0033]
[1741805102336,0.05183061,124.98,124.96,0.05207941]
[1741805102530,0.05183061,124.98,124.96,8.05567941]
[1741805102736,13.27292018,124.97,124.96,0.05207941]
[1741805102936,0.05183061,124.98,124.96,0.05207941]
[1741805103536,0.05183061,124.98,124.97,8.0033]
[1741805105534,13.27292018,125.03,125.01,8.0003]
[1741805105930,13.27292018,125.03,124.99,8.0017]
[1741805106124,8.0005,125.02,124.99,8.0017]
[1741805106330,13.27292018,125.03,124.99,8.0017]
[1741805106526,0.05733587,125.02,124.99,8.06020263]
[1741805106726,8.05773587,125.02,124.99,8.06020263]
[1741805107137,13.27292018,125.01,124.99,0.05850263]
[1741805107333,8.0014,125.0,124.99,0.05850263]
[1741805107729,13.27292018,125.01,124.99,0.05850263]
[1741805107936,21.27402018,125.01,124.99,0.05850263]
[1741805108230,13.27292018,125.01,124.99,0.05850263]
[1741805108435,8.0014,125.0,124.99,0.05850263]
[1741805108635,13.27292018,125.01,124.99,0.05850263]
[1741805109440,8.0014,125.0,124.99,0.05850263]
[1741805110443,21.27402018,125.01,124.99,0.05850263]
[1741805110644,13.27292018,125.01,124.99,0.05850263]
[1741805110841,0.05733587,125.02,125.0,8.0014]
[1741805112138,8.05743587,125.02,125.0,8.0014]
[1741805112344,0.05733587,125.02,124.99,0.05850263]
[1741805112642,8.0011,125.01,124.99,0.05850263]
[1741805112844,0.05733587,125.02,124.99,0.05850263]
[1741805113337,8.001,125.01,124.99,0.05850263]
[1741805113540,0.05733587,125.02,124.99,0.05850263]
[1741805113844,8.0007,125.01,124.99,0.05850263]
[1741805114345,0.05733587,125.02,124.99,0.05850263]
[1741805114646,8.0014,125.0,124.99,0.05850263]
[1741805115043,0.05733587,125.02,124.99,13.33142281]
[1741805116039,0.05733587,125.02,124.99,17.64642281]
[1741805116244,0.05733587,125.02,125.0,8.0014]
[1741805117241,0.05733587,125.02,124.99,17.64642281]
[1741805117640,0.05733587,125.02,124.99,0.05850263]
[1741805117844,8.05763587,125.02,124.99,8.06020263]
[1741805118049,13.27292018,125.01,124.99,0.05850263]
[1741805118446,8.0014,125.0,124.99,0.05850263]
[1741805119449,8.0014,125.0,124.96,8.0036]
[1741805119450,45.49292018,125.01,124.94,32.22]
[1741805119749,21.27622018,124.98,124.94,32.22]
[1741805120043,13.27292018,124.98,124.94,32.22]
[1741805120449,13.27292018,124.98,124.97,8.0033]
[1741805120650,0.05141428,124.97,124.95,13.33172106]
[1741805121047,1.428e-05,124.97,124.96,8.004]
[1741805124152,1.428e-05,124.97,124.96,9.9959]
[1741805124355,1.428e-05,124.97,124.96,17.9959]
[1741805124553,1.428e-05,124.97,124.96,20.1385]
[1741805124755,1.428e-05,124.97,124.96,12.1385]
[1741805127455,1.428e-05,124.97,124.96,20.1385]
[1741805127658,7.9985,125.05,125.02,8.0001]
[1741805127858,32.2,125.08,125.01,13.27292018]
[1741805128154,7.9985,125.05,125.02,7.9998]
[1741805128456,13.27292018,125.05,125.01,13.27292018]
[1741805128756,0.05257181,125.04,125.02,8.05692082]
[1741805128955,0.05257181,125.04,125.02,0.05682082]
[1741805129555,13.27292018,125.03,125.02,0.05682082]
[1741805130455,8.05167181,125.04,125.02,0.05682082]
[1741805130955,0.05257181,125.04,125.02,0.05682082]
[1741805131254,7.9995,125.03,125.02,0.05682082]
[1741805132550,21.27242018,125.03,125.02,0.05682082]
[1741805133153,8.0028,124.98,124.94,13.27292018]
[1741805133354,13.27292018,124.99,124.94,13.27292018]
[1741805133753,8.0043,124.96,124.93,34.3412]
[1741805133955,8.0043,124.96,124.93,42.3468]
[1741805134256,8.05577141,124.96,124.93,42.40228662]
[1741805135156,8.05577141,124.96,124.93,10.20228662]
[1741805135357,8.0048,124.95,124.93,10.20228662]
[1741805135553,0.05147141,124.96,124.94,8.0051]
[1741805136255,0.05147141,124.96,124.93,10.20218662]
[1741805136460,0.05147141,124.96,124.93,2.19668662]
[1741805136660,0.05147141,124.96,124.95,8.0046]
[1741805140861,34.3231,125.02,124.98,8.0023]
[1741805141563,8.001,125.01,124.98,8.0023]
[1741805141767,34.3231,125.02,124.96,8.0034]
[1741805141965,8.0019,125.0,124.98,0.06070474]
[1741805142164,0.05104624,125.01,124.98,0.06070474]
[1741805142465,0.05104624,125.01,124.98,8.06300474]
[1741805142667,0.05104624,125.01,124.98,0.06070474]
[1741805142963,20.80908187,125.01,124.98,0.06070474]
[1741805144261,8.002,125.0,124.98,0.06070474]
[1741805145471,20.80908187,125.01,124.98,0.06070474]
[1741805145669,8.002,124.99,124.98,0.06070474]
[1741805145867,22.89668187,125.01,124.98,0.06070474]
[1741805146165,30.89778187,125.01,124.98,8.06300474]
[1741805146469,2.13864624,125.01,124.98,0.06070474]
[1741805146865,10.13944624,125.01,124.99,8.0017]
[1741805147063,2.13864624,125.01,124.99,8.0017]
[1741805148063,10.13944624,125.01,124.99,8.0017]
[1741805148369,10.13944624,125.01,124.98,8.06290474]
[1741805148966,8.0015,125.0,124.98,8.06290474]
[1741805149267,8.0015,125.0,124.98,0.06070474]
[1741805150064,8.0015,125.0,124.98,8.06330474]
[1741805150669,2.13864624,125.01,124.98,0.06070474]
[1741805151772,8.0017,125.0,124.98,8.06310474]
[1741805152071,8.0017,125.0,124.98,0.06070474]
[1741805152365,8.002,124.99,124.98,0.06070474]
[1741805153067,8.004,124.96,124.92,2.0818]
[1741805153265,52.93803563,125.0,124.92,2.0818]
[1741805154174,8.003,124.98,124.92,2.0818]
[1741805154474,0.06068718,124.97,124.95,0.05494112]
[1741805154875,0.06068718,124.97,124.96,8.0039]
[1741805155075,0.06068718,124.97,124.95,0.05494112]
[1741805156071,0.06068718,124.97,124.96,8.004]
[1741805158377,8.718e-05,124.97,124.96,8.004]
[1741805158583,13.27963022,125.02,125.01,8.0007]
[1741805159481,13.27963022,125.02,124.97,13.27963022]
[1741805159685,13.27963022,125.02,125.0,0.05220835]
[1741805160377,0.0521025,125.03,125.0,0.05220835]
[1741805160583,0.0521025,125.03,125.01,8.0003]
[1741805160879,0.0521025,125.03,125.0,0.05220835]
[1741805161472,0.0521025,125.03,125.02,8.0001]
[1741805162093,13.33173272,125.03,125.0,0.05220835]
[1741805162381,13.27963022,125.01,124.93,272.22]
[1741805162683,13.27963022,124.97,124.93,272.22]
[1741805162884,13.27963022,124.99,124.93,272.22]
[1741805163083,13.27963022,124.99,124.94,13.27963022]
[1741805163284,13.27963022,124.99,124.95,8.0042]
[1741805163484,0.06067451,124.98,124.95,0.05156408]
[1741805163880,0.06067451,124.98,124.96,8.0035]
[1741805164280,0.06067451,124.98,124.95,0.05156408]
[1741805164986,0.06067451,124.98,124.97,8.0033]
[1741805165490,0.06067451,124.98,124.95,0.05156408]
[1741805165689,0.06067451,124.98,124.97,8.0033]
[1741805166586,103.44402625,125.08,124.97,28.75100849]
[1741805166789,65.22757679,125.08,125.0,20.75100849]
[1741805166982,32.16,125.08,125.03,7.9991]
[1741805167289,160.89042873,125.09,125.01,32.16]
[1741805167478,193.05042873,125.09,125.01,32.16]
[1741805167683,193.05042873,125.09,125.04,0.05790652]
[1741805167684,0.05438786,125.06,125.04,0.05790652]
[1741805168080,0.05438786,125.06,125.05,7.9982]
[1741805168287,0.05438786,125.06,125.04,0.05790652]
[1741805170085,20.80539635,125.06,124.99,2.1662]
[1741805170388,20.75100849,125.04,124.97,8.0028]
[1741805170588,52.89100849,125.04,124.97,8.0028]
[1741805170790,8.001,125.01,124.96,28.75470849]
[1741805170991,52.89100849,125.04,124.95,36.3953]
[1741805171191,52.89100849,125.04,124.95,34.3243]
[1741805171391,0.05672855,125.01,124.98,0.05909021]
[1741805172292,20.75100849,125.0,124.98,0.05909021]
[1741805172493,20.75100849,125.0,124.92,274.231]
[1741805172994,20.75100849,125.0,124.93,8.0057]
[1741805173497,8.05771421,124.98,124.95,0.05102961]
[1741805173692,0.05441421,124.98,124.95,0.05102961]
[1741805174295,32.19441421,124.98,124.95,0.05102961]
[1741805174793,8.004,124.96,124.95,0.05102961]
[1741805175289,8.0035,124.97,124.95,0.05102961]
[1741805175696,52.9454227,124.98,124.95,0.05102961]
[1741805175997,32.19441421,124.98,124.95,0.05102961]
[1741805177596,32.19441421,124.98,124.95,8.05532961]
[1741805177798,32.19441421,124.98,124.95,0.05102961]
[1741805178102,40.19721421,124.98,124.95,8.05552961]
[1741805179003,32.19441421,124.98,124.95,8.05552961]
[1741805179504,32.19441421,124.98,124.96,8.0039]
[1741805180501,32.19441421,124.98,124.95,0.05102961]
[1741805180804,32.19441421,124.98,124.97,8.0033]
[1741805182898,0.05441421,124.98,124.97,8.0033]
[1741805183204,2.1936,125.03,124.95,52.9420381]
[1741805183394,2.1936,125.03,125.0,8.0012]
[1741805183599,10.1934,125.03,125.0,8.0012]
[1741805183998,2.1936,125.03,124.97,20.75100849]
[1741805184203,40.1385,125.05,124.98,32.14]
[1741805184401,2.736e-05,125.01,124.99,0.06111842]
[1741805184698,191.41764149,125.1,124.99,20.81212691]
[1741805184905,191.41764149,125.1,125.02,20.75100849]
[1741805185100,191.41764149,125.1,125.02,52.89100849]
[1741805185101,70.32556743,125.1,125.02,52.89100849]
[1741805185306,70.32556743,125.1,125.05,7.9978]
[1741805185607,0.05299386,125.09,125.06,0.06152948]
[1741805186205,52.89100849,125.08,124.98,32.14]
[1741805186410,20.75100849,125.06,124.98,32.14]